bitfinex-derivatives/quotes_BTCF0:USTF0_20241224
["timestamp","ask_amount","ask_price","bid_price","bid_amount"]
[1735072551973,0.051085,97938.0,97937.0,0.00888128]
[1735072552160,0.009,97939.0,97935.0,0.051087]
[1735072552358,0.051086,97936.0,97935.0,0.051087]
[1735072553563,0.060086,97936.0,97935.0,0.051087]
[1735072554269,0.060086,97936.0,97935.0,0.05999025]
[1735072557663,0.060086,97936.0,97935.0,0.00890325]
[1735072557859,0.051096,97918.0,97917.0,0.1083]
[1735072558172,0.051098,97914.0,97913.0,0.412418]
[1735072558777,0.051098,97914.0,97913.0,0.411898]
[1735072560671,0.051098,97914.0,97913.0,0.416898]
[1735072560879,0.052098,97914.0,97913.0,0.42568238]
[1735072562671,0.17406594,97914.0,97913.0,0.42568238]
[1735072563371,0.051104,97903.0,97889.0,0.24446486]
[1735072563671,0.411904,97903.0,97889.0,0.24446486]
[1735072564171,0.411904,97903.0,97898.0,0.00904587]
[1735072564377,0.411904,97903.0,97881.0,0.2091]
[1735072564378,0.412904,97903.0,97877.0,0.3608]
[1735072564564,0.10012877,97890.0,97877.0,0.3608]
[1735072564773,0.051117,97878.0,97877.0,0.00883168]
[1735072565077,0.051117,97878.0,97876.0,0.24446486]
[1735072565277,0.051117,97878.0,97876.0,0.25357766]
[1735072565478,0.051117,97878.0,97876.0,0.0091128]
[1735072565479,8.871e-05,97877.0,97876.0,0.0091128]
[1735072565782,8.871e-05,97877.0,97857.0,0.1066]
[1735072566075,0.10012877,97870.0,97857.0,0.1066]
[1735072566280,0.051127,97859.0,97857.0,0.1155897]
[1735072566473,8.871e-05,97858.0,97857.0,0.0089897]
[1735072566673,8.871e-05,97858.0,97853.0,0.24446486]
[1735072566974,8.871e-05,97858.0,97851.0,0.157131]
[1735072566975,8.871e-05,97858.0,97852.0,0.05113]
[1735072567170,8.871e-05,97858.0,97857.0,0.003]
[1735072568564,0.00308871,97858.0,97854.0,0.051129]
[1735072569384,0.00308871,97858.0,97857.0,0.002]
[1735072570772,0.00208871,97858.0,97857.0,0.002]
[1735072571178,0.00308871,97858.0,97857.0,0.002]
[1735072571780,0.00308871,97858.0,97856.0,0.051128]
[1735072572787,0.00308871,97858.0,97857.0,0.002]
[1735072573485,0.00308871,97858.0,97856.0,0.054128]
[1735072573874,0.051128,97857.0,97856.0,0.003]
[1735072574181,0.051128,97857.0,97808.0,0.34344]
[1735072574182,0.051138,97838.0,97830.0,0.051141]
[1735072574373,0.05122253,97837.0,97826.0,0.203]
[1735072574573,0.05122253,97837.0,97828.0,0.051142]
[1735072574880,0.05122253,97837.0,97826.0,0.203]
[1735072574881,0.05122253,97837.0,97830.0,0.051142]
[1735072575982,0.05222253,97837.0,97830.0,0.051142]
[1735072576183,0.00108453,97837.0,97835.0,0.051139]
[1735072576482,8.453e-05,97837.0,97835.0,0.051139]
[1735072576680,0.00108453,97837.0,97835.0,0.051139]
[1735072577175,0.00208453,97837.0,97835.0,0.051139]
[1735072577576,0.00108453,97837.0,97835.0,0.051139]
[1735072577773,0.00208453,97837.0,97835.0,0.051139]
[1735072578185,0.00208453,97837.0,97830.0,0.008]
[1735072578483,0.051141,97832.0,97830.0,0.008]
[1735072578674,0.044141,97832.0,97826.0,0.203]
[1735072578874,0.051142,97830.0,97826.0,0.203]
[1735072579472,0.043142,97830.0,97826.0,0.203]
[1735072579975,0.05322253,97837.0,97828.0,0.3608]
[1735072580186,0.05322253,97837.0,97829.0,0.051142]
[1735072580187,0.001,97830.0,97829.0,0.051142]
[1735072583584,0.002,97830.0,97829.0,0.051142]
[1735072586885,0.01842934,97880.0,97829.0,0.051142]
[1735072586886,0.051129,97856.0,97831.0,0.051141]
[1735072587084,0.3608,97867.0,97851.0,0.3608]
[1735072587378,0.051125,97863.0,97851.0,0.4702]
[1735072587587,0.3608,97875.0,97862.0,0.3608]
[1735072587770,0.3608,97875.0,97866.0,0.051123]
[1735072587976,0.3608,97875.0,97862.0,0.3608]
[1735072588181,0.057123,97867.0,97862.0,0.3608]
[1735072588681,0.006,97867.0,97866.0,0.051123]
[1735072588874,0.3698,97875.0,97866.0,0.051123]
[1735072589076,0.051123,97866.0,97862.0,0.3608]
[1735072589275,0.051123,97866.0,97863.0,0.051124]
[1735072589981,0.003,97867.0,97865.0,0.051123]
[1735072590184,0.051107,97896.0,97887.0,0.051112]
[1735072590484,0.051107,97896.0,97889.0,0.3608]
[1735072590682,0.15245992,97907.0,97889.0,0.3608]
[1735072590889,0.051105,97901.0,97890.0,0.10012877]
[1735072591077,0.15245992,97907.0,97900.0,0.051105]
[1735072591279,0.051097,97915.0,97908.0,0.051101]
[1735072591579,1.5,97918.0,97900.0,0.10012877]
[1735072591784,1.5,97918.0,97897.0,0.3608]
[1735072591785,0.3608,97905.0,97885.0,0.051113]
[1735072591986,0.3608,97905.0,97887.0,0.3608]
[1735072592187,0.051104,97904.0,97888.0,0.051111]
[1735072592488,0.3608,97905.0,97888.0,0.051111]
[1735072592687,0.051111,97889.0,97885.0,0.00905603]
[1735072592884,0.051111,97889.0,97882.0,0.0991]
[1735072593385,0.051108,97896.0,97887.0,0.051112]
[1735072593579,0.051108,97896.0,97889.0,0.3608]
[1735072593988,0.001,97902.0,97889.0,0.3608]
[1735072594183,0.051104,97903.0,97892.0,0.10012877]
[1735072594991,0.006,97896.0,97892.0,0.10012877]
[1735072595293,0.006,97896.0,97895.0,0.051108]
[1735072595484,0.053104,97903.0,97897.0,0.051107]
[1735072595791,0.051105,97901.0,97897.0,0.051107]
[1735072598195,0.058105,97901.0,97897.0,0.052107]
[1735072598389,0.059105,97901.0,97897.0,0.052107]
[1735072599291,0.061105,97901.0,97897.0,0.052107]
[1735072599695,0.061105,97901.0,97897.0,0.0610603]
[1735072599895,0.059105,97901.0,97897.0,0.0610603]
[1735072600295,0.059105,97901.0,97897.0,0.0099533]
[1735072600597,0.059105,97901.0,97899.0,0.051106]
[1735072601894,0.051106,97899.0,97897.0,0.0099533]
[1735072602196,0.051106,97899.0,97897.0,0.0089533]
[1735072602393,1.5,97898.0,97889.0,0.3608]
[1735072602593,0.051109,97893.0,97889.0,0.3608]
[1735072602783,0.051109,97893.0,97890.0,0.05111]
[1735072604799,0.052109,97893.0,97890.0,0.05111]
[1735072604988,0.059109,97893.0,97890.0,0.05211]
[1735072606701,0.05111,97891.0,97890.0,0.001]
[1735072607389,0.007,97893.0,97877.0,0.051117]
[1735072607894,0.001,97893.0,97877.0,0.051117]
[1735072608093,0.007,97891.0,97877.0,0.051117]
[1735072608491,0.007,97891.0,97880.0,0.10012877]
[1735072608492,0.001,97891.0,97880.0,0.10012877]
[1735072608701,0.051112,97888.0,97880.0,0.15124377]
[1735072609203,0.051113,97886.0,97880.0,0.15124377]
[1735072609600,0.3608,97894.0,97880.0,0.15124377]
[1735072609798,0.051117,97878.0,97874.0,0.3608]
[1735072609993,0.051115,97882.0,97874.0,0.3608]
[1735072610301,0.051115,97882.0,97876.0,0.051118]
[1735072611706,0.056115,97882.0,97876.0,0.051118]
[1735072611919,0.057115,97882.0,97876.0,0.051118]
[1735072613419,0.057115,97882.0,97879.0,0.051116]
[1735072614315,0.051115,97882.0,97879.0,0.051116]
[1735072614512,0.057115,97882.0,97879.0,0.051116]
[1735072615018,0.058115,97882.0,97879.0,0.051116]
[1735072615507,0.056115,97882.0,97879.0,0.051116]
[1735072615710,0.005,97882.0,97879.0,0.051116]
[1735072616207,0.051121,97881.0,97879.0,0.051116]
[1735072617917,0.052121,97881.0,97879.0,0.051116]
[1735072618418,0.051124,97874.0,97873.0,0.3608]
[1735072619015,0.051124,97874.0,97867.0,0.051127]
[1735072619211,0.051126,97871.0,97867.0,0.051127]
[1735072619419,0.411927,97869.0,97867.0,0.00911778]
[1735072619716,0.05113,97863.0,97856.0,0.156133]
[1735072619911,0.05113,97863.0,97856.0,0.256333]
[1735072620123,0.3608,97861.0,97856.0,0.256333]
[1735072620317,0.3608,97861.0,97856.0,0.151333]
[1735072620510,0.051131,97860.0,97856.0,0.1002]
[1735072620713,0.3608,97861.0,97858.0,0.00923127]
[1735072620915,0.15245992,97871.0,97870.0,0.051126]
[1735072621513,0.15445992,97871.0,97870.0,0.051126]
[1735072621915,0.15245992,97875.0,97869.0,0.2087]
[1735072622116,0.15245992,97875.0,97874.0,0.051124]
[1735072623222,0.3608,97879.0,97869.0,0.2087]
[1735072623425,0.3608,97879.0,97877.0,0.051122]
[1735072624424,0.51325992,97879.0,97877.0,0.051122]
[1735072624828,0.51525992,97879.0,97877.0,0.051122]
[1735072625215,0.52225992,97879.0,97877.0,0.051122]
[1735072625626,0.15245992,97878.0,97877.0,0.051122]
[1735072626722,0.37040001,97879.0,97877.0,0.051122]
[1735072626928,0.053122,97878.0,97877.0,0.051122]
[1735072627930,0.053122,97878.0,97869.0,0.06060269]
[1735072627931,0.051126,97871.0,97869.0,0.06060269]
[1735072628330,0.051126,97871.0,97869.0,0.00947669]
[1735072628523,0.411926,97870.0,97863.0,0.05113]
[1735072628719,0.051129,97865.0,97863.0,0.05113]
[1735072629022,0.3608,97868.0,97856.0,0.2346944]
[1735072629217,0.3608,97868.0,97856.0,0.051133]
[1735072629218,0.051133,97858.0,97856.0,0.051133]
[1735072629833,0.051133,97858.0,97856.0,0.06072304]
[1735072630039,0.051129,97864.0,97860.0,0.051131]
[1735072630623,0.1091,97869.0,97860.0,0.051131]
[1735072630624,0.3608,97861.0,97860.0,0.051131]
[1735072633034,0.3638,97861.0,97860.0,0.051131]
[1735072633234,0.3638,97861.0,97854.0,0.1095]
[1735072633436,0.051132,97858.0,97854.0,0.1095]
[1735072633630,0.051132,97858.0,97856.0,0.051133]
[1735072633827,0.3638,97861.0,97854.0,0.11869752]
[1735072634029,0.3638,97861.0,97860.0,0.051131]
[1735072634730,0.3608,97861.0,97860.0,0.051131]
[1735072635534,0.3638,97861.0,97860.0,0.051131]
[1735072639440,0.51665156,97861.0,97860.0,0.051131]
[1735072643943,0.3638,97861.0,97860.0,0.051131]
[1735072645442,0.15585156,97861.0,97860.0,0.051131]
[1735072645842,0.15585156,97861.0,97854.0,0.11869752]
[1735072646142,0.3608,97857.0,97855.0,0.051134]
[1735072648537,0.051136,97852.0,97851.0,0.00948791]
[1735072648743,0.051136,97852.0,97843.0,0.05114]
[1735072648935,0.10012877,97853.0,97839.0,0.46322]
[1735072649249,0.411942,97840.0,97839.0,0.00965301]
[1735072649445,0.411942,97840.0,97832.0,0.24446486]
[1735072649648,0.3608,97849.0,97832.0,0.24446486]
[1735072649851,0.3608,97849.0,97847.0,0.051138]
[1735072650050,0.18339598,97858.0,97857.0,0.051133]
[1735072650935,0.18339598,97858.0,97852.0,0.3608]
[1735072650936,0.051126,97871.0,97864.0,0.051129]
[1735072651346,0.051126,97870.0,97864.0,0.051129]
[1735072651545,0.21260207,97872.0,97864.0,0.051129]
[1735072652151,0.051129,97865.0,97864.0,0.051129]
[1735072653650,0.063129,97865.0,97864.0,0.051129]
[1735072653855,0.063129,97865.0,97864.0,0.06054343]
[1735072654451,0.054129,97865.0,97864.0,0.06054343]
[1735072654649,0.063129,97865.0,97864.0,0.06054343]
[1735072656257,0.060129,97865.0,97864.0,0.06054343]
[1735072656459,0.063129,97865.0,97864.0,0.06054343]
[1735072657058,0.054129,97865.0,97864.0,0.06054343]
[1735072657357,0.063129,97865.0,97864.0,0.06054343]
[1735072659058,0.060129,97865.0,97864.0,0.06054343]
[1735072659264,0.063129,97865.0,97864.0,0.06054343]
[1735072662257,0.012,97865.0,97864.0,0.06054343]
[1735072662666,0.19590184,97865.0,97864.0,0.06054343]
[1735072665372,0.012,97865.0,97864.0,0.06054343]
[1735072665758,0.063134,97865.0,97864.0,0.06054343]
[1735072671578,0.063134,97865.0,97864.0,0.00941443]
[1735072671871,0.051139,97855.0,97854.0,0.051139]
[1735072672070,0.411939,97855.0,97854.0,0.051139]
[1735072673073,0.416939,97855.0,97854.0,0.051139]
[1735072673468,0.3658,97855.0,97841.0,0.1073]
[1735072673676,0.3608,97845.0,97844.0,0.051145]
[1735072675967,0.3618,97845.0,97844.0,0.051145]
[1735072680179,0.412944,97845.0,97844.0,0.051145]
[1735072680373,0.412944,97845.0,97841.0,0.00952984]
[1735072680374,0.051146,97842.0,97841.0,0.00952984]
[1735072680673,0.051148,97837.0,97830.0,0.10012877]
[1735072680875,0.3608,97834.0,97833.0,0.05115]
[1735072682275,0.3618,97834.0,97833.0,0.05115]
[1735072682469,0.3668,97834.0,97833.0,0.05115]
[1735072684165,0.051152,97830.0,97827.0,0.051153]
[1735072684868,0.15285686,97832.0,97827.0,0.051153]
[1735072685074,0.051153,97828.0,97827.0,0.051153]
[1735072687579,0.411953,97828.0,97827.0,0.051153]
[1735072688183,0.051154,97827.0,97826.0,0.0095721]
[1735072688481,0.051154,97827.0,97804.0,0.1103]
[1735072688677,0.3608,97807.0,97805.0,0.051165]
[1735072690078,0.12217785,97806.0,97805.0,0.051165]
[1735072691287,0.001,97806.0,97805.0,0.051165]
[1735072691479,0.006,97806.0,97805.0,0.051165]
[1735072692983,0.006,97806.0,97805.0,0.411965]
[1735072693279,0.36088979,97828.0,97805.0,0.711965]
[1735072693280,0.15285686,97820.0,97805.0,0.711965]
[1735072693480,0.15285686,97820.0,97819.0,0.051158]
[1735072694475,0.15385686,97820.0,97819.0,0.051158]
[1735072694779,0.01,97820.0,97819.0,0.051158]
[1735072695986,0.006,97820.0,97819.0,0.051158]
[1735072696288,0.009,97820.0,97819.0,0.051158]
[1735072697080,0.006,97820.0,97819.0,0.051158]
[1735072697482,0.3668,97820.0,97819.0,0.051158]
[1735072698585,0.051149,97836.0,97826.0,0.051154]
[1735072698586,0.15285686,97836.0,97826.0,0.051154]
[1735072698792,0.1379628,97836.0,97835.0,0.051149]
[1735072699081,0.18354409,97843.0,97842.0,0.051146]
[1735072699285,0.18354409,97843.0,97842.0,0.411946]
[1735072699989,0.5449441,97865.0,97854.0,0.051139]
[1735072700488,0.5449441,97865.0,97850.0,0.10012877]
[1735072700789,0.1841441,97865.0,97854.0,0.10012877]
[1735072700988,0.1841441,97865.0,97850.0,0.10012877]
[1735072700989,0.18354409,97864.0,97863.0,0.051134]
[1735072702391,0.014,97865.0,97863.0,0.051134]
[1735072702591,0.009,97864.0,97863.0,0.052134]
[1735072704095,0.007,97864.0,97863.0,0.051134]
[1735072704294,0.015,97864.0,97863.0,0.052134]
[1735072704683,0.008,97864.0,97863.0,0.052134]
[1735072704886,0.011,97864.0,97863.0,0.052134]
[1735072707592,0.3718,97864.0,97863.0,0.001]
[1735072707792,0.422934,97864.0,97863.0,0.001]
[1735072708386,0.422934,97864.0,97863.0,0.01334973]
[1735072708598,0.051143,97848.0,97841.0,0.051146]
[1735072708898,0.3608,97844.0,97841.0,0.051146]
[1735072710197,0.3608,97844.0,97838.0,0.10012877]
[1735072710498,0.3608,97844.0,97843.0,0.35735564]
[1735072710995,0.3638,97844.0,97843.0,0.35735564]
[1735072711500,0.3648,97844.0,97843.0,0.35735564]
[1735072711994,0.3648,97844.0,97843.0,0.01375564]
[1735072712196,0.3648,97844.0,97820.0,0.10012877]
[1735072712392,0.051157,97820.0,97810.0,0.10012877]
[1735072712587,0.3608,97826.0,97810.0,0.10012877]
[1735072712795,0.3608,97826.0,97816.0,0.15128777]
[1735072712796,0.411954,97826.0,97816.0,0.15128777]
[1735072712999,0.411954,97826.0,97816.0,0.10012877]
[1735072713193,0.3608,97826.0,97822.0,0.051156]
[1735072714086,0.3618,97826.0,97822.0,0.051156]
[1735072714700,0.3648,97826.0,97822.0,0.051156]
[1735072715394,0.3658,97826.0,97822.0,0.051156]
[1735072716899,0.3658,97826.0,97816.0,0.05128477]
[1735072717799,0.005,97826.0,97816.0,0.05128477]
[1735072717995,0.004,97826.0,97822.0,0.051156]
[1735072718197,0.001,97826.0,97822.0,0.051156]
[1735072720203,0.005,97826.0,97822.0,0.051156]
[1735072721591,0.005,97826.0,97822.0,0.0629927]
[1735072723385,0.056154,97826.0,97822.0,0.0629927]
[1735072724387,0.005,97826.0,97822.0,0.0629927]
[1735072724592,0.051156,97823.0,97822.0,0.0118367]
[1735072724795,0.051157,97821.0,97816.0,0.051159]
[1735072726003,0.051157,97821.0,97818.0,0.051158]
[1735072726397,0.052157,97821.0,97818.0,0.051158]
[1735072727007,0.053157,97821.0,97818.0,0.051158]
[1735072727399,0.051157,97821.0,97818.0,0.051158]
[1735072727596,0.054157,97821.0,97818.0,0.051158]
[1735072727802,0.055157,97821.0,97818.0,0.051158]
[1735072728705,0.004,97821.0,97819.0,0.051158]
[1735072728897,0.18354409,97838.0,97837.0,0.051148]
[1735072729098,0.18354409,97838.0,97837.0,0.411948]
[1735072729603,0.15228845,97850.0,97849.0,0.051142]
[1735072730307,0.15228845,97850.0,97845.0,0.3608]
[1735072730504,0.15228845,97850.0,97845.0,0.42419036]
[1735072730707,0.16128845,97850.0,97845.0,0.42419036]
[1735072731210,0.15828845,97850.0,97845.0,0.42419036]
[1735072731400,0.3608,97846.0,97845.0,0.01224636]
[1735072731601,0.3608,97846.0,97839.0,0.051147]
[1735072731793,0.3608,97846.0,97841.0,0.051146]
[1735072731998,0.3608,97846.0,97843.0,0.051145]
[1735072733301,0.3628,97846.0,97843.0,0.051145]
[1735072733600,0.3638,97846.0,97843.0,0.051145]
[1735072734105,0.3628,97846.0,97843.0,0.051145]
[1735072734507,0.3628,97846.0,97838.0,0.1238008]
[1735072734508,0.3628,97846.0,97844.0,0.051144]
[1735072735914,0.3638,97846.0,97844.0,0.051144]
[1735072736212,0.3648,97846.0,97844.0,0.051144]
[1735072739114,0.51708845,97846.0,97844.0,0.051144]
[1735072740706,0.3648,97846.0,97844.0,0.051144]
[1735072741706,0.3648,97846.0,97838.0,0.1238008]
[1735072741707,0.14238886,97847.0,97841.0,0.3608]
[1735072741913,0.08292462,97847.0,97846.0,0.051144]
[1735072742115,0.17154409,97854.0,97853.0,0.05114]
[1735072743219,0.3608,97859.0,97858.0,0.051137]
[1735072745220,0.3648,97859.0,97858.0,0.051137]
[1735072745724,0.3738,97859.0,97858.0,0.052137]
[1735072747417,0.3738,97859.0,97858.0,0.06702453]
[1735072753521,0.013,97859.0,97858.0,0.06702453]
[1735072755432,0.064137,97859.0,97858.0,0.01588753]
[1735072756229,0.064137,97859.0,97858.0,0.001]
[1735072756730,0.064137,97859.0,97830.0,0.24446486]
[1735072756731,0.013,97859.0,97830.0,0.10012877]
[1735072756914,0.3608,97836.0,97834.0,0.05115]
[1735072758717,0.3608,97836.0,97834.0,0.05415]
[1735072764326,0.18343833,97845.0,97841.0,0.051146]
[1735072764533,0.18343833,97847.0,97844.0,0.051145]
[1735072765641,0.18343833,97847.0,97834.0,0.002]
[1735072765817,0.411948,97838.0,97831.0,0.051151]
[1735072766025,0.1026,97837.0,97831.0,0.051151]
[1735072766925,0.1026,97837.0,97831.0,0.003]
[1735072767134,0.1026,97837.0,97833.0,0.05115]
[1735072768629,0.1036,97837.0,97833.0,0.05115]
[1735072768834,0.1066,97837.0,97833.0,0.05115]
[1735072770231,0.157749,97837.0,97830.0,0.11556973]
[1735072770619,0.157749,97837.0,97830.0,0.16672173]
[1735072771424,0.154749,97837.0,97830.0,0.16672173]
[1735072771624,0.154749,97837.0,97830.0,0.11556973]
[1735072771933,0.154749,97837.0,97831.0,0.051151]
[1735072772135,0.154749,97837.0,97832.0,0.051151]
[1735072772330,0.05115,97834.0,97830.0,0.11556973]
[1735072772637,0.05115,97834.0,97830.0,0.01544096]
[1735072772934,0.05115,97834.0,97829.0,0.00153322]
[1735072773137,0.3608,97830.0,97829.0,0.00153322]
[1735072773635,0.3608,97830.0,97829.0,0.01545332]
[1735072773938,0.39960638,97872.0,97830.0,0.051152]
[1735072774139,0.13691524,97863.0,97862.0,0.051135]
[1735072774829,0.27464341,97880.0,97877.0,0.051127]
[1735072775034,0.18858773,97897.0,97896.0,0.051118]
[1735072775536,0.41247001,97910.0,97885.0,0.10012877]
[1735072775723,0.41247001,97910.0,97883.0,0.051124]
[1735072775724,0.41191,97910.0,97900.0,0.10012877]
[1735072776033,0.3608,97904.0,97900.0,0.10012877]
[1735072776224,0.3608,97904.0,97898.0,0.051116]
[1735072776734,0.3608,97904.0,97901.0,0.051115]
[1735072777928,0.3778,97904.0,97901.0,0.052115]
[1735072778234,0.3778,97904.0,97901.0,0.001]
[1735072778431,0.051114,97903.0,97901.0,0.001]
[1735072781137,0.051116,97900.0,97892.0,0.051119]
[1735072781340,0.3608,97895.0,97892.0,0.051119]
[1735072782034,0.20741959,97895.0,97892.0,0.06493606]
[1735072782442,0.20741959,97895.0,97892.0,0.01381706]
[1735072782646,0.21641959,97895.0,97892.0,0.001]
[1735072782930,0.051119,97894.0,97892.0,0.001]
[1735072784222,0.057119,97894.0,97892.0,0.001]
[1735072784628,0.051119,97893.0,97892.0,0.001]
[1735072785731,0.060119,97893.0,97892.0,0.001]
[1735072785930,0.066119,97893.0,97892.0,0.001]
[1735072787825,0.066119,97893.0,97876.0,0.00153264]
[1735072788025,0.051127,97878.0,97876.0,0.00153264]
[1735072788230,0.051127,97878.0,97876.0,0.01552098]
[1735072788535,0.051127,97878.0,97876.0,0.06664898]
[1735072788735,0.3608,97887.0,97876.0,0.01552098]
[1735072788923,0.012,97893.0,97890.0,0.05112]
[1735072789129,0.003,97893.0,97892.0,0.05112]
[1735072789732,0.3608,97903.0,97888.0,0.3608]
[1735072790040,0.3608,97895.0,97894.0,0.051118]
[1735072790744,0.3608,97895.0,97890.0,0.10012877]
[1735072791039,0.411918,97895.0,97890.0,0.10012877]
[1735072791431,0.420918,97895.0,97890.0,0.10012877]
[1735072791839,0.411918,97895.0,97890.0,0.10012877]
[1735072792038,0.420918,97895.0,97890.0,0.10012877]
[1735072792239,0.427918,97895.0,97890.0,0.10012877]
[1735072792827,0.420918,97895.0,97890.0,0.10012877]
[1735072793029,0.3748,97895.0,97888.0,0.06521775]
[1735072793237,0.05112,97893.0,97888.0,0.06521775]
[1735072793834,0.05112,97893.0,97890.0,0.001]
[1735072794240,0.05512,97893.0,97888.0,0.06521775]
[1735072794936,0.004,97893.0,97888.0,0.01409575]
[1735072795141,0.051121,97889.0,97876.0,0.00153264]
[1735072795344,0.051127,97879.0,97876.0,0.00153264]
[1735072795839,0.1093,97882.0,97876.0,0.00153264]
[1735072796141,0.051127,97878.0,97876.0,0.00153264]
[1735072797141,0.051127,97878.0,97876.0,0.00353264]
[1735072797341,0.051127,97878.0,97876.0,0.00453264]
[1735072797640,0.051127,97878.0,97876.0,0.00253264]
[1735072797944,0.051127,97878.0,97876.0,0.00453264]
[1735072798242,0.051127,97878.0,97876.0,0.00353264]
[1735072798439,0.054127,97878.0,97876.0,0.00353264]
[1735072799335,0.055127,97878.0,97876.0,0.00153264]
[1735072800446,0.004,97878.0,97865.0,0.18269669]
[1735072800744,0.411933,97866.0,97865.0,0.18269669]
[1735072800948,0.3608,97866.0,97865.0,0.19657609]
[1735072801140,0.3608,97866.0,97865.0,0.0138794]
[1735072801444,0.3608,97866.0,97864.0,0.051134]
[1735072802046,0.3608,97866.0,97865.0,0.002]
[1735072802941,0.3608,97866.0,97865.0,0.004]
[1735072803343,0.411933,97866.0,97865.0,0.002]
[1735072803539,0.051135,97862.0,97861.0,0.18296454]
[1735072803940,0.051137,97859.0,97858.0,0.18296454]
[1735072804441,0.051137,97859.0,97854.0,0.24446486]
[1735072804643,0.411939,97855.0,97854.0,0.24446486]
[1735072804943,0.051142,97850.0,97849.0,0.24446486]
[1735072805652,0.051142,97850.0,97847.0,0.051143]
[1735072806033,0.051142,97850.0,97848.0,0.051142]
[1735072806240,0.053142,97850.0,97848.0,0.051142]
[1735072806544,0.002,97850.0,97848.0,0.051142]
[1735072806946,0.1067,97854.0,97841.0,0.37611025]
[1735072807246,0.15784,97854.0,97851.0,0.051141]
[1735072808248,0.05114,97853.0,97851.0,0.051141]
[1735072808455,0.05114,97853.0,97851.0,0.001]
[1735072808655,0.051143,97847.0,97836.0,0.24446486]
[1735072808846,0.051143,97847.0,97835.0,0.24446486]
[1735072809559,0.051143,97847.0,97830.0,0.01786343]
[1735072810148,0.053143,97847.0,97830.0,0.01786343]
[1735072810558,0.058143,97847.0,97846.0,0.00107506]
[1735072810753,0.051151,97831.0,97830.0,0.01786343]
[1735072810953,0.051152,97830.0,97827.0,0.051153]
[1735072811763,9.678e-05,97829.0,97827.0,0.06902881]
[1735072813253,0.05124978,97829.0,97827.0,0.06902881]
[1735072813456,0.05324978,97829.0,97827.0,0.06902881]
[1735072813857,0.05824978,97829.0,97827.0,0.06902881]
[1735072816964,0.05824978,97829.0,97827.0,0.01787581]
[1735072817260,0.051153,97828.0,97821.0,0.051157]
[1735072818346,0.051155,97825.0,97821.0,0.051157]
[1735072819165,0.051155,97825.0,97820.0,0.11758828]
[1735072819851,0.053155,97825.0,97820.0,0.11758828]
[1735072821064,0.053155,97825.0,97823.0,0.051155]
[1735072821654,0.051157,97821.0,97820.0,0.01745951]
[1735072821865,0.051157,97821.0,97818.0,0.395358]
[1735072822166,0.051157,97821.0,97818.0,0.394598]
[1735072822765,0.051158,97820.0,97818.0,0.34344]
[1735072823061,0.05116,97814.0,97813.0,0.00836753]
[1735072823361,0.051161,97812.0,97811.0,0.24446486]
[1735072824457,0.05125778,97812.0,97811.0,0.24446486]
[1735072824657,0.351161,97812.0,97804.0,0.30415605]
[1735072824962,0.051167,97801.0,97800.0,0.1]
[1735072825164,0.051169,97798.0,97787.0,0.30489908]
[1735072825369,0.411974,97788.0,97787.0,0.30489908]
[1735072825958,0.41205971,97788.0,97787.0,0.30489908]
[1735072826668,0.051177,97783.0,97782.0,0.00013267]
[1735072828063,0.47012001,97787.0,97760.0,0.05297673]
[1735072828368,0.3608,97773.0,97772.0,0.051182]
[1735072828872,0.36136001,97787.0,97785.0,0.051175]
[1735072829060,0.00108571,97788.0,97783.0,0.3608]
[1735072829257,0.3608,97807.0,97784.0,0.3165]
[1735072829459,0.05117,97797.0,97796.0,0.051169]
[1735072830266,0.05125618,97797.0,97796.0,0.051169]
[1735072830468,8.618e-05,97797.0,97796.0,0.051169]
[1735072831468,0.00208618,97797.0,97796.0,0.051169]
[1735072831668,0.00708618,97797.0,97796.0,0.051169]
[1735072832070,0.051168,97801.0,97796.0,0.051169]
[1735072833072,5.756e-05,97800.0,97796.0,0.07373234]
[1735072833975,5.756e-05,97800.0,97796.0,0.07473234]
[1735072834270,5.756e-05,97800.0,97797.0,0.051169]
[1735072834470,0.00105756,97800.0,97797.0,0.051169]
[1735072834979,0.00105756,97800.0,97799.0,0.051168]
[1735072835167,0.3608,97834.0,97820.0,0.051157]
[1735072835367,0.051155,97825.0,97820.0,0.051157]
[1735072835776,0.3608,97824.0,97820.0,0.051157]
[1735072836176,0.01053452,97821.0,97820.0,0.052157]
[1735072836782,0.00153452,97821.0,97820.0,0.055157]
[1735072837081,0.00753452,97821.0,97820.0,0.055157]
[1735072837380,0.051145,97844.0,97840.0,0.051147]
[1735072837770,0.051145,97844.0,97831.0,0.3608]
[1735072837771,0.3608,97846.0,97844.0,0.051145]
[1735072837986,0.11596986,97850.0,97848.0,0.051142]
[1735072838178,0.00153357,97851.0,97836.0,0.10012877]
[1735072838179,0.00153357,97851.0,97849.0,0.051142]
[1735072839582,0.01053357,97851.0,97850.0,0.3608]
[1735072840170,0.01353357,97851.0,97850.0,0.3608]
[1735072840371,0.01353357,97851.0,97849.0,0.02365609]
[1735072840882,0.06467457,97851.0,97849.0,0.001]
[1735072841575,0.051144,97847.0,97842.0,0.02185129]
[1735072841774,0.051144,97847.0,97837.0,0.521108]
[1735072841975,0.051144,97847.0,97837.0,0.520348]
[1735072842876,0.057144,97847.0,97842.0,0.001]
[1735072843272,0.053144,97847.0,97837.0,0.54318421]
[1735072843469,0.057144,97847.0,97837.0,0.54238421]
[1735072844472,0.056144,97847.0,97837.0,0.54238421]
[1735072844674,0.3608,97845.0,97837.0,0.02203621]
[1735072844981,0.3608,97845.0,97830.0,0.05128077]
[1735072845184,0.3608,97834.0,97818.0,0.3608]
[1735072845384,0.3608,97834.0,97827.0,0.051153]
[1735072845882,0.3608,97834.0,97824.0,0.10012877]
[1735072846077,0.051154,97827.0,97824.0,0.10012877]
[1735072846279,0.051154,97827.0,97824.0,0.02248922]